Cogmind - Beta 15 @@@ ROGUE MODE // 2025.08.01 @ 09:25:30 Player: StaticNoob Result: Destroyed by G-50 Soldier with Heavy Laser Performance ------------- Evolutions (4) 2000 Regions Visited (15) 3000 Robots Destroyed (153) 765 Value Destroyed (4103) 4103 Prototype IDs (56) 1120 Alien Tech Used (1) 200 Bonus (709) 709 TOTAL SCORE: 11897 Bonus ------- Follower Combat Kills 109 Aligned with FarCom 300 Met Imprinter 300 Cogmind --------- Core Integrity 0/850 Matter 300/300 Energy 58/100 System Corruption 2% Temperature Cool (9) Movement Core (400) Ox7 Location -6/Lower Caves Parts ------- > --- POWER (2) -------- (None) > --- PROPULSION (6) --- (None) > --- UTILITY (6) ------ Large Storage Unit Hacking Suite Improved Hacking Suite > --- WEAPON (2) ------- CR-A16's Pointy Stick > --- INVENTORY (15) --- VTOL Module Xenon Bombardment Thruster Nuclear Pulse Thruster Cooled Cesium-ion Thruster Trap Scanner Advanced Terrain Scan Processor 0b10 Decoder Chip [Looter] ECM Suite Advanced Shield Generator Makeshift System Shield Authchip [Weapon] Trap Reconfigurator Bomb Factory No. 2 Peak State ------------ > --- POWER ------------ Light Angular Momentum Engine Light Fission Core > --- PROPULSION ------- Improved Flight Unit Improved Flight Unit Cesium-ion Thruster Cesium-ion Thruster Xenon Bombardment Thruster Cooled Cesium-ion Thruster > --- UTILITY ---------- Large Storage Unit Advanced Weight Redist. System Transmission Jammer Hacking Suite Makeshift Hacking Suite Improved Hacking Suite > --- WEAPON ----------- CR-A16's Pointy Stick > --- INVENTORY -------- Hybrid Deuterium Engine Trap Scanner Advanced Terrain Scan Processor ECM Suite Reaction Control System Advanced Shield Generator Makeshift System Shield Authchip [Weapon] Trap Reconfigurator Bomb Factory No. 2 Plasma Cannon Heavy Rocket Launcher Phasing Sabre [Rating: 62] Favorites ----------- Power Hybrid Deuterium Engine Engine Hybrid Deuterium Engine Power Core Light Nuclear Core Propulsion Light Treads Treads Light Treads Leg Carbon-fiber Leg Hover Unit Gravmag System Flight Unit Improved Flight Unit Utility Hacking Suite Device Advanced Weight Redist. System Storage Large Storage Unit Processor Machine Analyzer Hackware Hacking Suite Protection Hardened Light Armor Plating Weapon Improved Light Cannon Energy Gun Small Laser Energy Cannon Plasma Cannon Ballistic Gun Heavy Assault Rifle Ballistic Cannon Improved Light Cannon Launcher Mini Grenade Launcher Slashing Weapon Greatsword Piercing Weapon CR-A16's Pointy Stick Build | -11 -10 -10 -9 -9 -9 -8 -8 -7 -7 -7 -7 -6 -6 -6 -6 ------- Run | Yrd Mat Min Mat Min Exi Min Mat Fac Low Low Zio Pro Fac Low Low Slots Evolved 8 | . . . 2 . . . 2 2 . . . . 2 . . Power 1 | . . . . . . . . . . . . . 1 . . Propulsion 4 | . . . 1 . . . 1 1 . . . . 1 . . Utility 3 | . . . 1 . . . 1 1 . . . . . . . Weapon . | . . . . . . . . . . . . . . . . Parts Attached 104 | 7 10 6 18 3 . 1 10 21 3 1 5 5 5 . 9 Power 11 | 1 2 2 1 1 . . . . . . . 3 1 . . Engine 8 | 1 2 1 1 1 . . . . . . . 2 . . . Core 3 | . . 1 . . . . . . . . . 1 1 . . Reactor . | . . . . . . . . . . . . . . . . Propulsion 33 | 2 1 2 7 1 . . 5 9 . . . . 1 . 5 Treads 18 | 2 1 2 7 1 . . 5 . . . . . . . . Leg 2 | . . . . . . . . . . . . . . . 2 Wheel . | . . . . . . . . . . . . . . . . Hover 1 | . . . . . . . . . . . . . . . 1 Flight 12 | . . . . . . . . 9 . . . . 1 . 2 Utility 36 | 2 2 1 7 . . . 2 9 2 1 3 2 2 . 3 Device 11 | 1 1 1 . . . . 1 1 2 1 1 2 . . . Storage 9 | 1 1 . 2 . . . . 2 . . 2 . . . 1 Processor 5 | . . . 1 . . . 1 2 . . . . . . 1 Hackware 6 | . . . 1 . . . . 3 . . . . 2 . . Protection 5 | . . . 3 . . . . 1 . . . . . . 1 Artifact . | . . . . . . . . . . . . . . . . Weapon 24 | 2 5 1 3 1 . 1 3 3 1 . 2 . 1 . 1 Energy Gun 2 | 1 1 . . . . . . . . . . . . . . Energy Cannon 1 | . . . . . . . . 1 . . . . . . . Ballistic Gun 6 | 1 3 . 1 . . . 1 . . . . . . . . Ballistic Cannon 3 | . . . 2 . . . 1 . . . . . . . . Launcher 8 | . 1 1 . 1 . 1 . 1 1 . 1 . 1 . . Special Weapon . | . . . . . . . . . . . . . . . . Impact Weapon . | . . . . . . . . . . . . . . . . Slashing Weapon 3 | . . . . . . . 1 1 . . . . . . 1 Piercing Weapon 1 | . . . . . . . . . . . 1 . . . . Special Melee Weapon . | . . . . . . . . . . . . . . . . Unidentified Prototypes 2 | . . . . . . . . 1 1 . . . . . . Parts Lost 31 | . 4 1 3 . . . . 2 1 1 . 1 3 . 15 Power 7 | . 2 1 1 . . . . . . . . . . . 3 Propulsion 8 | . . . . . . . . . . . . . 2 . 6 Utility 11 | . 1 . 1 . . . . 2 . 1 . 1 1 . 4 Weapon 5 | . 1 . 1 . . . . . 1 . . . . . 2 Highest Loss Streak 5 | . 2 1 2 . . . . 2 1 1 . 1 2 . 5 To Critical Strikes . | . . . . . . . . . . . . . . . . Average Backups 14 | 1 6 14 15 20 20 19 19 9 8 8 10 13 13 13 12 Power . | . . . . 1 1 1 1 . . . . . 1 2 . Propulsion 4 | . . 1 5 10 9 9 8 1 . . . . . . 2 Utility 5 | . 3 7 4 3 3 2 2 4 7 6 7 9 9 8 9 Weapon 3 | . 2 5 4 5 7 7 7 2 1 1 2 2 2 3 . Tool/Special . | . . . . . . . . . . . . . . . . Unused Backups 27 | . . 3 3 . 1 1 . 7 1 . 3 . . . 8 Power 1 | . . . . . . . . 1 . . . . . . . Propulsion 3 | . . . . . . . . 1 1 . . . . . 1 Utility 17 | . . 3 2 . 1 1 . 1 . . 2 . . . 7 Weapon 6 | . . . 1 . . . . 4 . . 1 . . . . Tool/Special . | . . . . . . . . . . . . . . . . Average Slot Usage (%) 90 | . 98 100 99 100 100 100 99 93 91 87 90 90 81 68 50 Engine 7 | . 13 4 6 11 11 11 9 7 7 7 7 5 1 . 1 Core 1 | . . 9 4 . . . . . . . . 1 5 6 . Treads 20 | . 28 28 33 33 33 33 35 . . . . . . . . Flight 8 | . . . . . . . . 37 37 35 35 35 31 25 2 Device 5 | . 13 14 1 . . . . 1 1 7 12 18 11 6 5 Storage 10 | . 14 14 11 11 11 11 9 6 7 7 7 7 6 6 9 Processor 1 | . . . . . . . 8 3 . . . . . . 2 Hackware 10 | . . . 9 11 11 11 9 22 22 16 14 14 17 18 13 Protection 5 | . . . 10 11 11 11 9 3 5 7 7 1 . . 2 Ballistic Gun 6 | . 25 24 4 . . . 4 2 . . . . . . . Ballistic Cannon 7 | . . . 17 21 22 16 11 . . . . . . . . Slashing Weapon 1 | . . . . . . . 2 6 5 6 . . . . 1 Piercing Weapon 1 | . . . . . . . . . . . 6 7 5 6 4 Peak Build Rating 62 | 7 11 14 18 24 25 25 38 50 47 47 45 50 62 47 50 Average Rating 26 | 5 8 12 16 19 24 25 31 42 43 43 43 48 53 46 33 On Entrance 30 | . 7 11 13 18 24 25 25 34 44 47 44 45 50 46 47 Naked Turns . | . . . . . . . . . . . . . . . . Heaviest Build 62 | 13 30 32 60 60 60 60 62 24 26 25 33 40 40 30 33 Greatest Support 90 | 40 40 40 60 68 68 68 90 26 26 26 35 35 44 30 31 Greatest Overweight (x) 7 | . . . . . . . . . . . . 1 1 . 7 Average Overweight (x) . | . . . . . . . . . . . . . . . . Largest Inventory Capacity 20 | 8 15 15 20 20 20 20 20 20 10 10 15 15 15 15 15 Average Capacity 15 | 7 12 15 17 20 20 20 20 9 10 10 12 15 15 15 15 Most Carried 20 | 2 13 15 20 20 20 20 20 20 10 10 13 15 15 15 15 Average Carried 14 | 1 6 14 15 19 20 19 19 9 8 8 10 14 14 14 13 Final Capacity 20 | 8 15 15 20 20 20 20 20 10 10 10 15 15 15 15 15 Final Carried 20 | 2 13 15 20 20 20 20 20 10 8 8 13 15 14 15 14 Class Distribution -------------------- 41% | Mutant 23% | Hacker-Sprinter 22% | Scavenger-Mutant 12% | Hacker-Mutant Dominant Class ---------------- Mutant | -10/Materials Mutant | -10/Mines Scavenger-Mutant | -9/Materials Scavenger-Mutant | -9/Mines Mutant | -9/Exiles Mutant | -8/Mines Mutant | -8/Materials Hacker-Sprinter | -7/Factory Hacker-Sprinter | -7/Lower Caves Hacker-Sprinter | -7/Lower Caves Hacker-Sprinter | -7/Zion Hacker-Sprinter | -6/Proximity Caves Hacker-Sprinter | -6/Factory Hacker-Sprinter | -6/Lower Caves Hacker-Mutant | -6/Lower Caves Resources | -11 -10 -10 -9 -9 -9 -8 -8 -7 -7 -7 -7 -6 -6 -6 -6 ----------- Run | Yrd Mat Min Mat Min Exi Min Mat Fac Low Low Zio Pro Fac Low Low Matter Collected 3564 | 267 375 335 721 106 . 45 451 413 226 33 131 174 40 69 178 Remotely . | . . . . . . . . . . . . . . . . Salvage Created 4068 | 78 581 389 1040 18 . 57 515 427 176 . 141 157 42 39 408 Parts 271 | 2 42 34 80 3 . 20 29 23 8 . 2 6 4 3 15 Haulers Intercepted 8 | . 2 . 5 . . . 1 . . . . . . . . Recyclers Shooed . | . . . . . . . . . . . . . . . . Parts Field Recycled . | . . . . . . . . . . . . . . . . Retrieved Matter . | . . . . . . . . . . . . . . . . Parts Self-Destructed 26 | . . . . . . . . . 5 . 2 8 . . 11 Prevented 3 | . . . . . . . . . 2 . . 1 . . . Kills | -11 -10 -10 -9 -9 -9 -8 -8 -7 -7 -7 -7 -6 -6 -6 -6 ------- Run | Yrd Mat Min Mat Min Exi Min Mat Fac Low Low Zio Pro Fac Low Low Combat Hostiles Destroyed 114 | . 15 17 25 4 . 11 14 6 9 . . 4 . . 9 Melee 12 | . . . . . . . . 2 2 . . . . . 8 Guns 27 | . 12 6 8 . . . 1 . . . . . . . . Cannons 20 | . . . 13 . . 1 5 . . . . 1 . . . AOE 55 | . 3 11 4 4 . 10 8 4 7 . . 3 . . 1 Classes Destroyed 15 | 2 5 1 2 . . . . 1 2 . . 1 . 1 . Worker 7 | . 1 1 3 . . . . . . . . . 2 . . Builder 5 | . . 1 1 . . . 2 . . . . . 1 . . Tunneler 4 | 1 . 2 1 . . . . . . . . . . . . Hauler 8 | . 2 . 5 . . . 1 . . . . . . . . Recycler 3 | 1 . . . . . . . 2 . . . . . . . Minesweeper 1 | . . . . . . . . . 1 . . . . . . Operator 3 | . 1 . 1 . . . . 1 . . . . . . . Watcher 7 | . . . 2 . . . 3 2 . . . . . . . Swarmer 48 | . 6 8 8 4 . 11 . 4 5 . . 1 . . 1 Grunt 50 | . 9 9 10 . . . 10 . 2 . . 3 . . 7 Brawler 1 | . . . . . . . . . . . . 1 . . . Sentry 13 | . . . 7 . . . 4 1 1 . . . . . . Hunter 1 | . . . . . . . . . 1 . . . . . . Programmer 2 | . . . . . . . . 1 . . . . . . 1 Samaritan 1 | . . . . . . . . . . . . . . 1 . Best Kill Streak 10 | 2 6 5 5 4 . 4 10 4 6 . . 4 2 . 2 Combat Bots Only 8 | . 5 4 5 4 . 4 8 4 5 . . 4 . . 2 Max Kills in Single Turn 4 | 1 3 4 3 2 . 4 3 3 4 . . 2 2 1 1 Gunslinging . | . . . . . . . . . . . . . . . . Exploded 4 | . 3 4 3 2 . 4 3 3 4 . . 2 . . 1 Melee 1 | . . . . . . . . 1 1 . . . . . 1 Uniques/NPCs Destroyed . | . . . . . . . . . . . . . . . . Combat | -11 -10 -10 -9 -9 -9 -8 -8 -7 -7 -7 -7 -6 -6 -6 -6 -------- Run | Yrd Mat Min Mat Min Exi Min Mat Fac Low Low Zio Pro Fac Low Low Hostile Shots Fired 524 | . 49 43 80 8 . 9 38 47 42 28 . 16 38 . 126 Missed 178 | . 16 16 19 . . 3 8 21 22 15 . 4 18 . 36 Hits 346 | . 33 27 61 8 . 6 30 26 20 13 . 12 20 . 90 Projectile 346 | . 33 27 61 8 . 6 30 26 20 13 . 12 20 . 90 Critical Strikes 12 | . 2 . 1 . . . 2 . 1 1 . . . . 5 Actively Blocked 1 | . . . . . . . . . . 1 . . . . . Damage Taken 5363 | . 523 364 887 64 . 129 488 333 276 183 . 161 258 . 1697 Core 1334 | . 84 56 93 8 . 8 29 77 70 13 . 36 94 . 766 Absorbed by Shields 33 | . . . . . . . . . . . . . 33 . . Redirected to Shielding 184 | . . . . . . . . 23 27 46 . 12 . . 76 Regen/Repaired (Parts) 224 | . . . . . . . 122 82 . . . . 20 . . Core Remaining (%) 76 | 100 . 44 . . . 72 94 . . . . 72 . . . Volleys Fired 228 | 5 52 26 78 4 . 8 25 3 16 . . 5 3 . 3 Largest 2 | 2 2 2 2 1 . 2 2 1 1 . . 1 1 . 1 Hottest 80 | 70 60 46 66 33 . 66 70 33 80 . . 80 80 . 39 Shots Fired 383 | 10 100 41 148 4 . 9 41 3 16 . . 5 3 . 3 Gun 198 | 10 99 30 52 . . . 7 . . . . . . . . Cannon 129 | . . . 94 . . 2 25 . 5 . . 1 2 . . Launcher 56 | . 1 11 2 4 . 7 9 3 11 . . 4 1 . 3 Special . | . . . . . . . . . . . . . . . . Kinetic 300 | 5 85 30 146 . . 2 32 . . . . . . . . Thermal 27 | 5 14 . . . . . . . 5 . . 1 2 . . Explosive 56 | . 1 11 2 4 . 7 9 3 11 . . 4 1 . 3 Electromagnetic . | . . . . . . . . . . . . . . . . Robot Hit Streak 18 | 3 7 5 18 1 . 1 10 1 2 . . 7 8 . 9 Robot Miss Streak 8 | 2 8 3 4 3 . 1 4 2 . . . . . . 2 Penetration Max . | . . . . . . . . . . . . . . . . Secondary Targets 2 | . 1 1 . . . . . . . . . . . . . Max Gunslinging Chain 1 | . 1 1 . . . . . . . . . . . . . Shots Hit Robots 259 | 5 47 19 97 1 . 2 32 16 8 1 4 5 2 1 19 Core Hits 212 | 2 26 28 48 2 . 11 40 10 13 . . 13 2 1 16 Critical Kills 1 | . . . 1 . . . . . . . . . . . . Critical Parts Destroyed 1 | . . . 1 . . . . . . . . . . . . Critical Strikes 14 | 1 . . 5 . . . 1 3 . 1 . . . . 3 Burn 1 | 1 . . . . . . . . . . . . . . . Destroy 2 | . . . 2 . . . . . . . . . . . . Blast 4 | . . . 3 . . . 1 . . . . . . . . Sever 5 | . . . . . . . . 3 . 1 . . . . 1 Impale 2 | . . . . . . . . . . . . . . . 2 Melee Attacks 154 | . . . . . . . 3 56 40 3 4 . 17 3 28 Impact . | . . . . . . . . . . . . . . . . Slashing 117 | . . . . . . . 3 56 40 3 4 . . . 11 Piercing 37 | . . . . . . . . . . . . . 17 3 17 Sneak Attacks 7 | . . . . . . . . 4 1 . . . 1 1 . Combat Hostiles . | . . . . . . . . . . . . . . . . Follow-up Attacks . | . . . . . . . . . . . . . . . . Damage Inflicted 11673 | 86 806 1236 2006 257 . 575 1790 1200 1245 47 416 645 265 92 1007 Guns 1554 | 86 667 246 474 . . . 81 . . . . . . . . Cannons 1660 | . . . 1297 . . 23 316 . . . . 24 . . . Explosions 5618 | . 139 984 211 257 . 552 1347 221 758 . . 621 193 . 335 Melee 2765 | . . . . . . . . 979 487 47 416 . 72 92 672 Ramming 76 | . . 6 24 . . . 46 . . . . . . . . Kinetic 3076 | 49 590 246 1771 . . 23 397 . . . . . . . . Thermal 422 | 37 77 284 . . . . . . . . . 24 . . . Explosive 5334 | . 139 700 211 257 . 552 1347 221 758 . . 621 193 . 335 Electromagnetic . | . . . . . . . . . . . . . . . . Impact . | . . . . . . . . . . . . . . . . Slashing 2242 | . . . . . . . . 979 487 47 416 . . . 313 Piercing 523 | . . . . . . . . . . . . . 72 92 359 Highest Corruption 3 | . . . . . . . . 3 3 . . . . . 2 Average Corruption 2 | . . . . . . . . 2 2 . . . . . 1 Corruption Purged 3 | . . . . . . . . . 3 . . . . . . Corruption Blocked . | . . . . . . . . . . . . . . . . Effects 28 | . . . . . . . . 9 2 . . . . . 17 Message Errors 10 | . . . . . . . . 3 . . . . . . 7 Matter Fused 7 | . . . . . . . . 2 1 . . . . . 4 Heat Flow Errors 2 | . . . . . . . . 1 1 . . . . . . Energy Discharges 4 | . . . . . . . . . . . . . . . 4 Data Loss (minor) 2 | . . . . . . . . 1 . . . . . . 1 Data Loss (major) 2 | . . . . . . . . 1 . . . . . . 1 Alerts 1 | . . . . . . . . 1 . . . . . . . Overload Shots . | . . . . . . . . . . . . . . . . Overflow Damage 961 | . . 35 15 56 . 29 25 258 184 . 326 . 32 . 1 Projectiles 12 | . . . 12 . . . . . . . . . . . . Explosions 175 | . . 35 3 56 . 29 25 . 27 . . . . . . Melee 774 | . . . . . . . . 258 157 . 326 . 32 . 1 Knockbacks 14 | . . . 9 . . . 5 . . . . . . . . Impact . | . . . . . . . . . . . . . . . . Kinetic 12 | . . . 7 . . . 5 . . . . . . . . Secondary 2 | . . . 2 . . . . . . . . . . . . Self-Inflicted Damage 321 | . . 64 80 . . 88 . 36 12 . . . 41 . . Shots 13 | . . 3 2 . . 4 . 2 1 . . . 1 . . Rammed 9 | . . 3 3 . . . 3 . . . . . . . . Targets Rammed 12 | . . 4 3 . . . 5 . . . . . . . . Kicked . | . . . . . . . . . . . . . . . . Crushed 3 | . . 1 . . . . 2 . . . . . . . . Highest Temperature 201 | 27 93 20 93 . . 6 32 139 130 . . 132 201 . 1 Average Temperature 38 | 12 49 7 21 . . 4 13 51 48 . . 56 93 . 1 Received Heat Transfer 1728 | . 174 144 264 . . . 225 45 12 . . 63 87 . 714 Siege Activations . | . . . . . . . . . . . . . . . . Martial Activations . | . . . . . . . . . . . . . . . . Shielding Activations . | . . . . . . . . . . . . . . . . Robots Disrupted . | . . . . . . . . . . . . . . . . Combat Hostiles . | . . . . . . . . . . . . . . . . Robots Corrupted . | . . . . . . . . . . . . . . . . Combat Hostiles . | . . . . . . . . . . . . . . . . Parts Fried . | . . . . . . . . . . . . . . . . Impact Corruptions . | . . . . . . . . . . . . . . . . Robots Melted . | . . . . . . . . . . . . . . . . Combat Hostiles . | . . . . . . . . . . . . . . . . Parts Melted 1 | . . 1 . . . . . . . . . . . . . Heat Transferred 760 | 185 175 350 . . . . . . . . . 50 . . . Parts Sabotaged . | . . . . . . . . . . . . . . . . Parts Stolen . | . . . . . . . . . . . . . . . . Parts Stripped . | . . . . . . . . . . . . . . . . Power Chain Reactions . | . . . . . . . . . . . . . . . . Alert | -11 -10 -10 -9 -9 -9 -8 -8 -7 -7 -7 -7 -6 -6 -6 -6 ------- Run | Yrd Mat Min Mat Min Exi Min Mat Fac Low Low Zio Pro Fac Low Low Maximum Alert Level 2 | . . 1 1 . . 1 1 . . . . . 2 . . Low Security (%) 72 | 100 100 49 47 100 . 93 74 100 . . . . 16 . . Level 1 24 | . . 50 52 . . 6 25 . . . . . 33 . . Level 2 2 | . . . . . . . . . . . . . 50 . . Level 3 . | . . . . . . . . . . . . . . . . Level 4 . | . . . . . . . . . . . . . . . . Level 5 . | . . . . . . . . . . . . . . . . High Security . | . . . . . . . . . . . . . . . . Max Security . | . . . . . . . . . . . . . . . . Peak Influence 615 | 5 147 319 307 107 . 213 321 148 . . . . 615 . . Initial 614 | . . 54 81 47 . . 55 . . . . . 614 . . Average 116 | . 33 181 186 21 . 98 81 44 . . . . 388 . . Influence Increases 5066 | 10 480 661 1018 115 . 325 555 518 205 . 15 143 729 . 292 Destroy 0b10 Robot/C 2380 | . 300 380 500 80 . 220 280 140 180 . . 120 . . 180 Destroy 0b10 Robot/NC 205 | 10 20 20 65 . . . 30 25 5 . 15 . 15 . . Destroy Leader 480 | . 54 80 134 10 . 30 78 44 20 . . 10 . . 20 Allied During Kill 35 | . . 20 . . . . . . . . . 13 . . 2 Trap Triggered on 0b10 10 | . . . . . . . . 10 . . . . . . . Successful Hack 235 | . 37 6 80 . . . 18 52 . . . . 42 . . Select Force Hacks 60 | . 30 . . . . . . 30 . . . . . . . Disable Machine 255 | . . 75 45 . . 15 60 60 . . . . . . . Destroy Structure 341 | . 9 80 29 25 . 60 59 52 . . . . 27 . . Advance Influence 600 | . . . . . . . . . . . . . 600 . . Partial Spotted 60 | . . . . . . . . 60 . . . . . . . Lose Combat Pursuer 405 | . 30 . 165 . . . 30 45 . . . . 45 . 90 Influence Decreases 5066 | 10 341 589 1107 237 . 182 698 483 204 36 15 120 557 163 324 Entered New Map 489 | . . 85 130 75 . . 88 . 14 8 . . 9 73 7 Time Decay 3214 | 10 322 434 578 162 . 182 352 344 180 18 15 90 198 90 239 Lost Part 217 | . 19 10 30 . . . . 20 10 10 . 10 30 . 78 Lost Ally 170 | . . 60 . . . . . 70 . . . 20 20 . . Purge Threat 976 | . . . 369 . . . 258 49 . . . . 300 . . Squads Dispatched 10 | . 2 . 2 1 . . . 3 . . . . 2 . . Investigation 5 | . 1 . 1 1 . . . 1 . . . . 1 . . Extermination 3 | . . . . . . . . 2 . . . . 1 . . Reinforcement 2 | . 1 . 1 . . . . . . . . . . . . Assault . | . . . . . . . . . . . . . . . . Garrison . | . . . . . . . . . . . . . . . . Intercept . | . . . . . . . . . . . . . . . . Searches Triggered . | . . . . . . . . . . . . . . . . Construction Impeded . | . . . . . . . . . . . . . . . . Haulers Reinforced . | . . . . . . . . . . . . . . . . Active Scanning Responses . | . . . . . . . . . . . . . . . . Cargo Convoy Interrupts . | . . . . . . . . . . . . . . . . Stealth | -11 -10 -10 -9 -9 -9 -8 -8 -7 -7 -7 -7 -6 -6 -6 -6 --------- Run | Yrd Mat Min Mat Min Exi Min Mat Fac Low Low Zio Pro Fac Low Low Distress Signals 7 | . 1 . 2 . . . 2 1 . . . . 1 . . Communications Jammed . | . . . . . . . . . . . . . . . . Distress Signals . | . . . . . . . . . . . . . . . . Times Spotted 186 | . 25 16 43 4 . 11 22 20 8 4 . 6 9 . 18 Peak Tracking Total 9 | . 3 5 5 4 . 4 4 5 4 4 . 4 9 . 4 Tactical Retreats 18 | . 2 . 6 . . . 1 2 . 1 . . 2 . 4 Traps | -11 -10 -10 -9 -9 -9 -8 -8 -7 -7 -7 -7 -6 -6 -6 -6 ------- Run | Yrd Mat Min Mat Min Exi Min Mat Fac Low Low Zio Pro Fac Low Low Traps Triggered 5 | . 1 . 2 . . . . 1 . . . . 1 . . Indirectly . | . . . . . . . . . . . . . . . . Trap Hack Attempts . | . . . . . . . . . . . . . . . . Triggered . | . . . . . . . . . . . . . . . . Disarmed . | . . . . . . . . . . . . . . . . Reprogrammed . | . . . . . . . . . . . . . . . . Reused 1 | . . . . . . . . 1 . . . . . . . Traps Reconfigurated 8 | . . . . . . . 2 6 . . . . . . . Traps Extracted . | . . . . . . . . . . . . . . . . Installed . | . . . . . . . . . . . . . . . . Triggered 1 | . . . . . . . . 1 . . . . . . . Machines | -11 -10 -10 -9 -9 -9 -8 -8 -7 -7 -7 -7 -6 -6 -6 -6 ---------- Run | Yrd Mat Min Mat Min Exi Min Mat Fac Low Low Zio Pro Fac Low Low Machines Disabled 17 | . . 5 3 . . 1 4 4 . . . . . . . Max in Single Turn 2 | . . 2 1 . . 1 2 1 . . . . . . . Garrison Access 5 | . . . . . . . 1 3 . . . . 1 . . Machines Repaired . | . . . . . . . . . . . . . . . . Machines Dismantled . | . . . . . . . . . . . . . . . . Machines Sabotaged . | . . . . . . . . . . . . . . . . Overloaded Fab Kills . | . . . . . . . . . . . . . . . . Hacking | -11 -10 -10 -9 -9 -9 -8 -8 -7 -7 -7 -7 -6 -6 -6 -6 --------- Run | Yrd Mat Min Mat Min Exi Min Mat Fac Low Low Zio Pro Fac Low Low Machines Accessed 75 | . 9 1 13 1 1 . 11 23 . . 1 . 14 1 . Terminals 46 | . 8 1 11 . . . 7 13 . . . . 6 . . Fabricators 4 | . . . . . . . . 4 . . . . . . . Repair Stations 3 | . . . . . . . 1 1 . . . . 1 . . Recycling Units 7 | . 1 . . . . . 1 1 . . . . 4 . . Scanalyzers 5 | . . . 2 . . . 1 1 . . . . 1 . . Garrison Access 6 | . . . . . . . 1 3 . . . . 2 . . Total Hacks 228 | . 37 4 46 1 1 . 37 65 . . 4 . 32 1 . Successful 134 | . 18 1 23 1 1 . 23 39 . . 4 . 23 1 . Failed 91 | . 19 3 22 . . . 13 25 . . . . 9 . . Catastrophic 12 | . 1 . 6 . . . 2 3 . . . . . . . Database Lockouts 3 | . . . 1 . . . 1 1 . . . . . . . Manual 125 | . 33 4 26 . 1 . 24 24 . . . . 13 . . Terminals 168 | . 33 4 39 . . . 29 43 . . . . 20 . . Fabricators 9 | . . . . . . . . 9 . . . . . . . Repair Stations 7 | . . . . . . . 2 3 . . . . 2 . . Recycling Units 13 | . 4 . . . . . 1 3 . . . . 5 . . Scanalyzers 13 | . . . 7 . . . 2 2 . . . . 2 . . Garrison Access 11 | . . . . . . . 3 5 . . . . 3 . . Terminal Hacks 62 | . 9 1 10 1 1 . 8 18 . . 4 . 9 1 . Record 2 | . . . . . . . . 2 . . . . . . . Part Schematic 7 | . 1 . . . . . . 2 . . 4 . . . . Robot Analysis 3 | . 2 . . . . . . 1 . . . . . . . Prototype ID Bank 19 | . 5 1 2 . . . 2 4 . . . . 5 . . Open Door 2 | . . . . 1 . . . . . . . . . 1 . Branch Access Points 3 | . . . 1 . . . . 1 . . . . 1 . . Unreport Threat 8 | . . . 3 . . . 2 1 . . . . 2 . . Locate Traps 6 | . 1 . 2 . . . 2 1 . . . . . . . Dispatch Records 1 | . . . . . . . . 1 . . . . . . . Maintenance Status 1 | . . . 1 . . . . . . . . . . . . Extermination Status 1 | . . . . . . . . 1 . . . . . . . Recall Extermination 1 | . . . . . . . . 1 . . . . . . . Hauler Manifests 1 | . . . . . . . 1 . . . . . . . . Registered Prototypes 1 | . . . . . . . . 1 . . . . . . . Zone Layout 5 | . . . 1 . . . 1 2 . . . . 1 . . Proto ID Catalog 1 | . . . . . 1 . . . . . . . . . . Fabricator Hacks 3 | . . . . . . . . 3 . . . . . . . Network Status 2 | . . . . . . . . 2 . . . . . . . Load Schematic 1 | . . . . . . . . 1 . . . . . . . Repair Station Hacks 6 | . . . . . . . 2 2 . . . . 2 . . Scan Component 3 | . . . . . . . 1 1 . . . . 1 . . Repair 3 | . . . . . . . 1 1 . . . . 1 . . Recycling Unit Hacks 6 | . 1 . . . . . 1 1 . . . . 3 . . Retrieve Components 6 | . 1 . . . . . 1 1 . . . . 3 . . Scanalyzer 13 | . . . 7 . . . 2 2 . . . . 2 . . Insert Component 7 | . . . 4 . . . 1 1 . . . . 1 . . Analyze 6 | . . . 3 . . . 1 1 . . . . 1 . . Garrison Access Hacks 5 | . . . . . . . 1 3 . . . . 1 . . Seal Access 5 | . . . . . . . 1 3 . . . . 1 . . Unauthorized Hacks 39 | . 8 . 6 . . . 9 10 . . . . 6 . . Terminals 34 | . 7 . 6 . . . 9 6 . . . . 6 . . Assimilate 1 | . . . . . . . . 1 . . . . . . . Botnet 5 | . 1 . 1 . . . 2 . . . . . 1 . . Skim 28 | . 6 . 5 . . . 7 5 . . . . 5 . . Fabricators 3 | . . . . . . . . 3 . . . . . . . Liberate 2 | . . . . . . . . 2 . . . . . . . Fabnet 1 | . . . . . . . . 1 . . . . . . . Repair Stations . | . . . . . . . . . . . . . . . . Recycling Units 2 | . 1 . . . . . . 1 . . . . . . . Tunnel 2 | . 1 . . . . . . 1 . . . . . . . Scanalyzers . | . . . . . . . . . . . . . . . . Garrison Access . | . . . . . . . . . . . . . . . . Data Cores Recovered 1 | . . . 1 . . . . . . . . . . . . Used . | . . . . . . . . . . . . . . . . Hacking Detections 56 | . 8 1 13 . . . 7 18 . . . . 9 . . Full Trace Events 4 | . . . 1 . . . 2 . . . . . 1 . . Feedback Events . | . . . . . . . . . . . . . . . . Feedback Blocked . | . . . . . . . . . . . . . . . . Robot Schematics Acquired . | . . . . . . . . . . . . . . . . Robots Built . | . . . . . . . . . . . . . . . . Authchips . | . . . . . . . . . . . . . . . . Time . | . . . . . . . . . . . . . . . . Total Robot Build Rating . | . . . . . . . . . . . . . . . . Part Schematics Acquired 13 | . 1 . 3 . . . 1 3 . . 4 . 1 . . Parts Built . | . . . . . . . . . . . . . . . . Authchips . | . . . . . . . . . . . . . . . . Time . | . . . . . . . . . . . . . . . . Total Part Build Rating . | . . . . . . . . . . . . . . . . Parts Repaired 3 | . . . . . . . 1 1 . . . . 1 . . Time 73 | . . . . . . . 32 22 . . . . 19 . . Parts Recycled . | . . . . . . . . . . . . . . . . Recycled Matter . | . . . . . . . . . . . . . . . . Retrieved Matter . | . . . . . . . . . . . . . . . . Retrieved Components 26 | . 1 . . . . . 9 9 . . . . 7 . . Parts Scanalyzed 6 | . . . 3 . . . 1 1 . . . . 1 . . Part Schematics Acquired 6 | . . . 3 . . . 1 1 . . . . 1 . . Parts Damaged . | . . . . . . . . . . . . . . . . Bothacking | -11 -10 -10 -9 -9 -9 -8 -8 -7 -7 -7 -7 -6 -6 -6 -6 ------------ Run | Yrd Mat Min Mat Min Exi Min Mat Fac Low Low Zio Pro Fac Low Low Used RIF Installer . | . . . . . . . . . . . . . . . . Robots Hacked 2 | . . . . . . . . . . . . 1 . . 1 Non-combat . | . . . . . . . . . . . . . . . . Combat 2 | . . . . . . . . . . . . 1 . . 1 Robot Hacks Applied . | . . . . . . . . . . . . . . . . Relay Couplers Released . | . . . . . . . . . . . . . . . . Fabnet Peak Effective % 3 | . . . . . . . . . . . . 3 3 3 3 Autooverrided 2 | . . . . . . . . . . . . 1 . . 1 Robots Rewired . | . . . . . . . . . . . . . . . . Allies Hacked . | . . . . . . . . . . . . . . . . Hacks Repelled . | . . . . . . . . . . . . . . . . Allies | -11 -10 -10 -9 -9 -9 -8 -8 -7 -7 -7 -7 -6 -6 -6 -6 -------- Run | Yrd Mat Min Mat Min Exi Min Mat Fac Low Low Zio Pro Fac Low Low Total Allies 13 | . . 3 . . . . . 4 . . 3 1 . . 2 Largest Group 3 | . . 3 . . . . . 3 . . 3 3 1 . 1 Highest-Rated Group 106 | . . 40 . . . . . 48 . . 90 90 51 . 106 Highest-Rated Ally 106 | . . 16 . . . . . 16 . . 51 51 51 . 106 Total Orders . | . . . . . . . . . . . . . . . . Ally Attacks 52 | . . 16 . . . . . 14 . . . 18 2 . 2 Total Damage 827 | . . 169 . . . . . 180 . . . 367 61 . 50 Kills 5 | . . 2 . . . . . 1 . . . 2 . . . Allies Corrupted . | . . . . . . . . . . . . . . . . Allies Melted . | . . . . . . . . . . . . . . . . Intel | -11 -10 -10 -9 -9 -9 -8 -8 -7 -7 -7 -7 -6 -6 -6 -6 ------- Run | Yrd Mat Min Mat Min Exi Min Mat Fac Low Low Zio Pro Fac Low Low Active Infowar (turns) 4746 | 19 1202 1076 285 . . . 1419 431 . 11 . 82 221 . . Terrain 1053 | . 280 773 . . . . . . . . . . . . . Traps 165 | . . . . . . . . 165 . . . . . . . Seismic 1529 | 19 922 303 285 . . . . . . . . . . . . Machine Analysis 1685 | . . . . . . . 1419 266 . . . . . . . Jamming 303 | . . . . . . . . . . . . 82 221 . . ECM 11 | . . . . . . . . . . 11 . . . . . Robot Analysis Total 3 | . 2 . . . . . . 1 . . . . . . . Derelict Logs Recovered 13 | . . 2 . 1 . . . . 2 1 3 1 . 1 2 Drone Launches . | . . . . . . . . . . . . . . . . Drone Recoveries . | . . . . . . . . . . . . . . . . Exploration | -11 -10 -10 -9 -9 -9 -8 -8 -7 -7 -7 -7 -6 -6 -6 -6 ------------- Run | Yrd Mat Min Mat Min Exi Min Mat Fac Low Low Zio Pro Fac Low Low Turns Passed 11440 | 99 1264 1076 1912 851 338 393 1421 913 379 64 523 186 412 182 1427 Spaces Moved 10270 | 47 608 606 975 521 211 229 653 1821 737 184 1104 384 703 613 874 Core 91 | 2 . . . . . . . . . . . . . . 89 Treads 3848 | 45 608 606 975 521 211 229 653 . . . . . . . . Legs 406 | . . . . . . . . . . . . . . . 406 Wheels . | . . . . . . . . . . . . . . . . Hover 127 | . . . . . . . . . . . . . . . 127 Flight 5798 | . . . . . . . . 1821 737 184 1104 384 703 613 252 Fastest Speed 19 | 50 160 160 160 160 160 160 156 26 26 26 26 26 19 28 28 Average Speed 85 | 155 160 160 160 160 160 160 157 27 26 26 26 26 25 28 131 Slowest Speed 400 | 160 160 160 160 160 160 160 160 28 26 26 26 102 98 28 400 Overloaded Moves 18 | . . . . . . . . . . . . . 18 . . Propulsion Burnouts . | . . . . . . . . . . . . . . . . Robots Hopped 18 | . . . . . . . . 12 . 1 . . 5 . . Potential Cave-ins . | . . . . . . . . . . . . . . . . Cave-ins Triggered . | . . . . . . . . . . . . . . . . Exploration Rate (%) 63 | 5 96 83 81 93 42 55 61 48 75 36 86 63 25 76 96 Regions Visited 15 Branch Regions 10 Pre-discovered Areas 11 | . 2 2 2 1 . . . 2 . . 2 . . . . Known Exits Taken 8 | . . 1 1 . . 1 . 1 . 1 . 1 1 1 . Unknown Exits Taken 7 | 1 1 . . 1 1 . 1 . 1 . 1 . . . . Scrap Searched 21 | . . 2 . 1 . . . . 2 1 3 3 . 6 3 Spaces Dug 85 | . . . . . . . 3 33 31 . . . 16 2 . Terrain Destroyed 594 | . 8 129 24 41 . 80 56 51 131 . . 15 25 2 32 Melee 84 | . . . . . . . 3 33 30 . . . 16 2 . Projectile 7 | . . . 5 . . 1 . . 1 . . . . . . AOE 503 | . 8 129 19 41 . 79 53 18 100 . . 15 9 . 32 Terrain Rammed . | . . . . . . . . . . . . . . . . Walls Destroyed . | . . . . . . . . . . . . . . . . Machines Disabled . | . . . . . . . . . . . . . . . . Actions | -11 -10 -10 -9 -9 -9 -8 -8 -7 -7 -7 -7 -6 -6 -6 -6 --------- Run | Yrd Mat Min Mat Min Exi Min Mat Fac Low Low Zio Pro Fac Low Low Total 12268 | 60 799 672 1182 536 212 246 995 2137 830 193 1335 460 895 616 1100 Wait 1278 | . 119 12 74 2 . 5 281 186 11 2 209 59 147 . 171 Move 10219 | 46 607 605 974 520 210 228 652 1796 736 181 1103 383 692 612 874 Hop 18 | . . . . . . . . 12 . 1 . . 5 . . Pick Up 59 | 2 9 7 10 2 1 1 1 14 1 . 7 . 2 1 1 Fast Attach 56 | 7 3 1 7 . . . 2 12 7 1 2 3 3 . 8 Attach 46 | . 2 1 5 . . . 2 12 7 2 1 2 5 . 7 Detach 29 | . . . 1 . . . . 5 5 2 1 3 6 . 6 Swap 69 | . 6 8 15 4 . 3 18 7 . . 2 3 3 . . Drop 92 | . 1 8 15 4 1 1 6 34 7 1 6 2 4 . 2 Fire 228 | 5 52 26 78 4 . 8 25 3 16 . . 5 3 . 3 Melee 154 | . . . . . . . 3 56 40 3 4 . 17 3 28 Ram . | . . . . . . . . . . . . . . . . Kick . | . . . . . . . . . . . . . . . . Crush 12 | . . 4 3 . . . 5 . . . . . . . . Escape Stasis 8 | . . . . . . . . . . . . . 8 . . Rewire . | . . . . . . . . . . . . . . . . Trap . | . . . . . . . . . . . . . . . . Miscellaneous . | . . . . . . . . . . . . . . . . Route ------- -11/Scrapyard -10/Materials (discovered 5 exits: *Mat x3 / *Min / Sub) -10/Mines (discovered 3 exits: *Mat x2 / *Sub) -9/Materials (discovered 5 exits: *Mat x3 / *Min x2) -9/Mines (discovered 4 exits: *Mat x2 / *Exi / *Zio) -9/Exiles -8/Mines (discovered 2 exits: *Mat x2) -8/Materials (discovered 3 exits: *Fac x2 / *Sto) -7/Factory (discovered 6 exits: *Fac x4 / *Low x2) -7/Lower Caves -7/Lower Caves -7/Zion (discovered 2 exits: Dee / [*Pro]) -6/Proximity Caves -6/Factory (discovered 4 exits: *Fac x2 / *Low x2) -6/Lower Caves -6/Lower Caves (discovered 2 exits: [*Dat] / *Fac) History --------- Turn | Location | Event 15 | -11/Scrapyard | Discovered new exit (range 16) 100 | -11/Scrapyard | Entered Materials 310 | -10/Materials | Discovered new exit (range 16) 313 | -10/Materials | Build established: Mutant 533 | -10/Materials | Discovered new exit (range 15) 648 | -10/Materials | Discovered new exit (range 11) 834 | -10/Materials | Discovered new exit (range 11) 1046 | -10/Materials | Learned Storage stockpile data 1089 | -10/Materials | Learned Storage terminal intel 1091 | -10/Materials | Learned 4 Recycling zone layouts 1092 | -10/Materials | Loaded intel: 14 trap records 1097 | -10/Materials | Learned 4 Recycling zone layouts 1110 | -10/Materials | Identified exit to Subcaves 1364 | -10/Materials | Entered Mines 1365 | -10/Mines | Identified exit to Materials 1468 | -10/Mines | Learned location of Storage (-8) 1542 | -10/Mines | Found a damaged Exp. Sensor Array with a note attached 1552 | -10/Mines | Found Prototype Device 1633 | -10/Mines | Learned Materials emergency access door positions 1699 | -10/Mines | Assisted by bots powering up and referring to "LRC-V3" 1772 | -10/Mines | Core integrity fell below 50% 1854 | -10/Mines | Learned location of Zion (-7) 1880 | -10/Mines | Received a Rocket Launcher from a helpful Derelict 1915 | -10/Mines | Discovered exit to Subcaves (range 13) 2096 | -10/Mines | Lost 3 allies 2382 | -10/Mines | Joined a pair of Derelicts in attacking an 0b10 outpost 2440 | -10/Mines | Entered Materials 2440 | -9/Materials | Evolved 2 slots: Propulsion x1, Utility x1 2441 | -9/Materials | Identified exit to Materials 2517 | -9/Materials | Discovered new exit (range 5) 2536 | -9/Materials | Identified exit to Mines 2710 | -9/Materials | Build established: Scavenger-Mutant 3079 | -9/Materials | Discovered exit to Materials (range 8) 3457 | -9/Materials | Loaded intel: 15 trap records 3469 | -9/Materials | Learned location of 1 exit from Storage 3492 | -9/Materials | Learned location of Mines (-9) 3527 | -9/Materials | Learned location of 1 exit from Storage 3717 | -9/Materials | Central database locked down 3823 | -9/Materials | Discovered exit to Materials (range 6) 4352 | -9/Materials | Entered Mines 4355 | -9/Mines | Assembled infested the area 4403 | -9/Mines | Met a Derelict bent on vengeance 4615 | -9/Mines | A weapon hastily lodged in a ceiling crevice suddenly fell to the ground 4931 | -9/Mines | Met a Derelict shopkeep closing up shop 5074 | -9/Mines | Discovered new exit (range 5) 5132 | -9/Mines | A Derelict revealed a hidden shortcut to a safe place 5203 | -9/Mines | Entered Exiles 5238 | -9/Exiles | Build established: Mutant 5242 | -9/Exiles | Met 8R-AWN 5271 | -9/Exiles | Met EX-HEX 5314 | -9/Exiles | Met EX-BIN 5336 | -9/Exiles | Aligned with FarCom system 5338 | -9/Exiles | Given EX-Vault access code 5375 | -9/Exiles | Opened EX-Vault 5386 | -9/Exiles | Found Trap Reconfigurator 5423 | -9/Exiles | Warned to stay clear of 0b10 Research branches 5523 | -9/Exiles | Discovered new exit (range 14) 5541 | -9/Exiles | Left Exiles lab with Trap Reconfigurator 5541 | -9/Exiles | Entered Mines 5832 | -8/Mines | Discovered exit to Materials (range 5) 5841 | -8/Mines | Discovered exit to Materials (range 16) 5934 | -8/Mines | Entered Materials 5934 | -8/Materials | Evolved 2 slots: Propulsion x1, Utility x1 5935 | -8/Materials | Identified exit to Storage 6025 | -8/Materials | Destroyed 8 combat bots 6122 | -8/Materials | Repaired Imp. Light Cannon 6401 | -8/Materials | Discovered new exit (range 16) 6781 | -8/Materials | Central database locked down 6781 | -8/Materials | Discovered new exit (range 7) 7004 | -8/Materials | Learned Storage emergency access door positions 7073 | -8/Materials | Learned 4 Recycling zone layouts 7132 | -8/Materials | Learned 8 Factory zone layouts 7182 | -8/Materials | Learned 2 Storage zone layouts 7223 | -8/Materials | Learned 4 Lower Caves zone layouts 7255 | -8/Materials | Learned Factory stockpile data 7295 | -8/Materials | Learned 2 Lower Caves zone layouts 7345 | -8/Materials | Learned location of 1 exit from Storage 7355 | -8/Materials | Entered Factory 7355 | -7/Factory | Evolved 2 slots: Propulsion x1, Utility x1 7567 | -7/Factory | Discovered new exit (range 11) 7623 | -7/Factory | Identified exit to Factory 7662 | -7/Factory | Build established: Hacker-Sprinter 7855 | -7/Factory | Identified exit to Lower Caves 7996 | -7/Factory | Learned 2 Hub_04(d) zone layouts 8038 | -7/Factory | Repaired Greatsword 8051 | -7/Factory | Central database locked down 8092 | -7/Factory | Loaded intel: 76 trap records 8124 | -7/Factory | Learned 8 Factory zone layouts 8165 | -7/Factory | Learned 2 Proximity Caves zone layouts 8217 | -7/Factory | Learned Hub_04(d) emergency access door positions 8268 | -7/Factory | Entered Lower Caves 8348 | -7/Lower Caves | Attracted the attention of an 0b10 checkpoint 8367 | -7/Lower Caves | Discovered new exit (range 15) 8370 | -7/Lower Caves | Learned 8 Factory zone layouts 8372 | -7/Lower Caves | Learned Factory security intel 8470 | -7/Lower Caves | Encountered a Warlord checkpoint 8632 | -7/Lower Caves | Found Alien Artifact 8632 | -7/Lower Caves | Identified Core Expander 8632 | -7/Lower Caves | Installed Core Expander, added new Utility slot 8647 | -7/Lower Caves | Entered another Lower Caves area 8702 | -7/Lower Caves | Identified exit to Zion 8711 | -7/Lower Caves | Entered Zion 8713 | -7/Zion | Learned Factory terminal intel 8728 | -7/Zion | Discovered new exit (range 12) 8758 | -7/Zion | Found CR-A16's Pointy Stick 8861 | -7/Zion | Gained Derelict followers 8867 | -7/Zion | Learned Factory garrison access intel 8876 | -7/Zion | Received a hallucinogenic algorithm 8894 | -7/Zion | Rebuked by Imprinter 8920 | -7/Zion | Learned 4 Factory zone layouts 8933 | -7/Zion | Identified exit to Deep Caves 8997 | -7/Zion | Found Prototype Device 9234 | -7/Zion | Entered Proximity Caves 9234 | -6/Proximity Caves | Accompanied by 3 allies 9284 | -6/Proximity Caves | Attracted the attention of an 0b10 checkpoint 9290 | -6/Proximity Caves | Spotter reported a threat 9290 | -6/Proximity Caves | Spotter reported a threat 9343 | -6/Proximity Caves | Spotter reported a threat 9355 | -6/Proximity Caves | Spotter reported a threat 9393 | -6/Proximity Caves | Discovered exit to Factory (range 2) 9420 | -6/Proximity Caves | Entered Factory 9420 | -6/Factory | Accompanied by 1 ally 9420 | -6/Factory | Evolved 2 slots: Power x1, Propulsion x1 9421 | -6/Factory | Identified exit to Lower Caves 9421 | -6/Factory | Identified exit to Factory 9423 | -6/Factory | Loaded intel: 26 terminal locations 9424 | -6/Factory | Loaded intel: 4 garrison access locations 9567 | -6/Factory | Repaired Adv. Weight Redist. System 9798 | -6/Factory | Discovered exit to Factory (range 12) 9832 | -6/Factory | Entered Lower Caves 9833 | -6/Lower Caves | Identified exit to Lower Caves 9976 | -6/Lower Caves | Encountered a Warlord checkpoint 10014 | -6/Lower Caves | Entered another Lower Caves area 10365 | -6/Lower Caves | Core integrity fell below 50% 10378 | -6/Lower Caves | Lost 5 parts (1p2n1u1w) 10438 | -6/Lower Caves | Build established: Hacker-Mutant 10534 | -6/Lower Caves | Core integrity fell below 20% 10635 | -6/Lower Caves | 12-ASH showed up to help 10648 | -6/Lower Caves | 12-ASH revealed a hidden path 10756 | -6/Lower Caves | Discovered new exit (range 9) 10816 | -6/Lower Caves | Encountered a Warlord checkpoint 11441 | -6/Lower Caves | Destroyed by G-50 Soldier with Heavy Laser Last Messages --------------- 10897_ Acquired derelict log, extracted data. Data stored: Extension entrances (x1). 10917_ System corrupted: Substantial component data lost. 10918_ Searching scrap... 10918_ Found Proton Cannon. 10918_ Found Nuclear Pulse Thruster. 10918_ Found Hvy. Laser. 10918_ Found Adv. Targeting Computer. 10918_ Found 34 Matter. 10922_ Acquired Nuclear Pulse Thruster. 10950_ System corrupted: Matter fused (-8). 11153_ System corrupted: Energy discharge (-93). 11261_ Acquired 3 matter. 11384_ System corrupted: Matter fused (-6). 11396_ Com. Battery destroyed. 11408_ Critical hit (Burn: +37). 11433_ Imp. Utility Shielding destroyed. 11433_ Adv. Weight Redist. System destroyed. 11436_ Carbon-fiber Leg destroyed. Map ----- +----------------------------------------------------+ | % #?# ##????????????????????????????????? | | % #?# ###???????????????????????????????? | | [ ### ##??????????????????????????????? | | # ### #??????????????????????????????? | | #### ## #??????????????????????????????? | | ##??### ## ##???????#######???????#####?###? | | #?###?#### ####?????#### ####???## ## ## | | ### ##?## #??????### #??## | | ## ### ##?##### ## #?## # | | #?# #######?# #? | | ##### ####????# #?? | | #???# ## ##???# ##? | | ## ##???## ## #??## #?### ## | | ### #####????????##?????# ### # | | ??# #########????????????# | | ??# ! # ##??????###### | | ??# ! ##????## ## | | ??## ### ###### # ### | | ???###### ###?# | | ???????# ### # ##???? | | #??????# ##### ### ### #????# | | ##?????# ####???## ### ## #????# | | ######## ###???????# #?# # #?????# | | #?## ####?????????# #? # ##??????# | | #??# ##????????#### ##? # ???????# | | #??## #?###??### @# #?##########???????# | | ## ##??## ###" ## g ##???????????###???# | | #### #???# ## "" g ##???????## ##??# | | #### #???# #""" g ######## #??# | | # ## ##???# #"" #?# | | #????# # "## ?## | | #????# ##### ??## | | ##??## ##???## ### #?????# | | #### ##?????####### ## #??????# | | #???????????# #?????####?## | | ##???????????# ##???## ### | | ### ##????????????# ### #??## ## | | #?## ##?????????????# #?# #### ## | | ##?## ###??????????????## #### ## | | #??###?????????????????####?# | | #??????????????????????????# | | # ##??????????????????????????# ######## ### | | ####???????????????????????????###???????#####?## | | ????????????????????????????????????????????????## | | ?????????????????????????????????????????????????? | | ?????????????????????????????????????????????????? | | ?????????????????????????????????????????????????? | | ?????????????????????????????????????????????????? | | ?????????????????????????????????????????????????? | | ?????????????????????????????????????????????????? | +----------------------------------------------------+ Best States ------------- Heat Dissipation 37 Energy Generation 31 Energy Capacity 800 Matter Stores 300 Matter Capacity 300 Sight Range 16 Terrain Scan Range 14 Terrain Scan Density 10 ECM Strength 1 Jamming Range 12 Additional Mass Support 9 Armor Coverage 150 Propulsion Shielding 66 Utility Shielding 66 Evasion (%) 74 Target Analysis 5 Recoil Reduction 4 Offensive Hacking 33 Authchip Count 1 Item Schematics ----------------- Lrg. Storage Unit | -10/Materials | Hacked Sml. Storage Unit | -9/Materials | Scanalyzed Imp. Flight Unit | -9/Materials | Scanalyzed Rocket Launcher | -9/Materials | Scanalyzed Hacking Suite | -8/Materials | Scanalyzed VTOL Module | -7/Factory | Scanalyzed Imp. Launcher Guidance Computer | -7/Factory | Hacked Hyp. Gauss Cannon | -7/Factory | Hacked Battle Cannon | -7/Zion | Free Beamcaster | -7/Zion | Free Slug Cannon | -7/Zion | Free Phasing Sabre | -7/Zion | Free Cld. Cesium-ion Thruster | -6/Factory | Scanalyzed Robot Schematics ------------------ None Fabricated ------------ Nothing Repaired ---------- Imp. Light Cannon | 9% | -8/Materials Greatsword | 41% | -7/Factory Adv. Weight Redist. System | 16% | -6/Factory Alien Tech Used ----------------- Core Expander Achievements -------------- Short-term Sacrifices Challenges ------------ None Game ------ Seed NovaCarbideFlamer Manual? 0 Play Time 01:57:20 Cumulative 156.7 hours Start 2025.07.30 @ 20:47:33 End 2025.08.01 @ 09:25:30 Sessions 9 Manual Loads 0 Difficulty Rogue Special Mode None Game No. 138 Rogue 138 Adventurer 0 Explorer 0 Win Type - Total 3 Types 2/0/1/0/0/0/0/0/0/0 Lore% 72 Gallery% 66 Achievement% 60 Wizard Run 0 Options --------- Layout 1 ASCII 0 Keyboard 0 Movement Numpad Keybinds 0 Fullscreen 1 Font 24/Smallcaps Map View 50x35 Zoom Use 0% Tactical HUD 1 Map Filters NONE Filters NONE Steam 1 RUN: e525b125-b99c-47b8-bfd7-1d31f6832340